fUST/lending_fUST_20250228
["ID","MTS","AMOUNT","RATE_DAILY","PERIOD"]
[354820134,1740715848745,-733.95,0.00079593,120]
[354820135,1740715848755,-500.0,0.00079593,120]
[354820136,1740715848764,-500.0,0.00079593,120]
[354820137,1740715848774,-500.0,0.00079593,120]
[354820138,1740715848783,-500.0,0.00079593,120]
[354820139,1740715848792,-500.0,0.00079593,120]
[354820140,1740715848801,-500.0,0.00079593,120]
[354820141,1740715848810,-500.0,0.00079593,120]
[354820142,1740715848819,-500.0,0.00079593,120]
[354820143,1740715848829,-689.66,0.00079593,120]
[354820144,1740715848838,-500.0,0.00079593,120]
[354820145,1740715848848,-508.7303459,0.00079593,7]
[354820146,1740715848858,-479.9,0.00079593,120]
[354820147,1740715848867,-500.0,0.00079593,120]
[354820148,1740715848877,-500.0,0.00079593,120]
[354820149,1740715848886,-500.0,0.00079593,120]
[354820150,1740715848895,-500.0,0.00079593,120]
[354820151,1740715848905,-8336.4,0.00079593,7]
[354820152,1740715848914,-500.0,0.00079593,120]
[354820153,1740715848928,-500.0,0.00079593,120]
[354820154,1740715848938,-500.0,0.00079593,120]
[354820155,1740715848947,-503.8021486,0.00079693,120]
[354820156,1740715848959,-500.0,0.00079693,120]
[354820157,1740715848969,-500.0,0.00079693,120]
[354820158,1740715848978,-991.04,0.00079693,120]
[354820159,1740715848987,-792.45,0.00079693,120]
[354820160,1740715848996,-765.02,0.00079693,120]
[354820161,1740715849005,-500.0,0.00079693,120]
[354820162,1740715849014,-500.0,0.00079693,120]
[354820163,1740715849024,-506.1999913,0.00079693,120]
[354820164,1740715849033,-500.0,0.00079693,120]
[354820165,1740715849043,-500.0,0.00079693,120]
[354820166,1740715849055,-500.0,0.00079693,120]
[354820167,1740715849064,-500.0,0.00079693,120]
[354820168,1740715849074,-500.0,0.00079693,120]
[354820169,1740715849084,-837.8,0.00079693,120]
[354820170,1740715849093,-500.0,0.00079693,120]
[354820171,1740715849103,-500.0,0.00079693,120]
[354820172,1740715849116,-500.0,0.00079693,2]
[354820173,1740715849131,-500.0,0.00079693,120]
[354820174,1740715849145,-500.0,0.00079693,120]
[354820175,1740715849157,-500.0,0.00079693,120]
[354820176,1740715849168,-500.0,0.00079693,120]
[354820177,1740715849182,-524.39,0.00079693,120]
[354820178,1740715849195,-500.0,0.00079693,120]
[354820179,1740715849210,-1247.36,0.00079693,15]
[354820180,1740715849222,-298.37293952,0.00079693,120]
[354820181,1740715849238,-515.88777817,0.00079693,120]
[354820182,1740715849253,-500.0,0.00079693,120]
[354820183,1740715849266,-500.0,0.00079693,120]
[354820184,1740715849280,-500.0,0.00079693,120]
[354820185,1740715849295,-500.0,0.00079693,120]
[354820186,1740715849308,-500.0,0.00079693,120]
[354820187,1740715849319,-500.0,0.00079693,120]
[354820188,1740715849334,-500.0,0.00079693,120]
[354820189,1740715849346,-764.34,0.00079693,120]
[354820190,1740715849358,-500.0,0.00079693,120]
[354820191,1740715849372,-500.0,0.00079693,120]
[354820192,1740715849385,-500.0,0.00079694,120]
[354820193,1740715849396,-440.15,0.00079694,120]
[354820194,1740715849409,-491.85757238,0.00079694,120]
[354820195,1740715849419,-500.0,0.00079694,120]
[354820196,1740715849432,-500.0,0.00079694,120]
[354820197,1740715849444,-500.0,0.00079694,120]
[354820198,1740715849458,-500.0,0.00079694,120]
[354820199,1740715849471,-500.0,0.00079694,120]
[354820200,1740715849484,-500.0,0.00079694,120]
[354820201,1740715849496,-500.0,0.00079694,120]
[354820202,1740715849510,-500.0,0.00079694,120]
[354820203,1740715849524,-552.17090517,0.00079694,120]
[354820204,1740715849536,-500.0,0.00079694,120]
[354820205,1740715849550,-500.0,0.00079694,120]
[354820206,1740715849562,-500.0,0.00079694,120]
[354820207,1740715849573,-303.02585631,0.00079694,120]
[354820208,1740715849583,-500.0,0.00079694,120]
[354820209,1740715849594,-500.0,0.00079694,120]
[354820210,1740715849606,-500.0,0.00079694,120]
[354820211,1740715849619,-500.0,0.00079694,120]
[354820212,1740715849632,-566.11,0.00079694,14]
[354820213,1740715849645,-500.0,0.00079694,120]
[354820214,1740715849655,-500.0,0.00079694,120]
[354820215,1740715849667,-500.0,0.00079694,120]
[354820216,1740715849678,-222.15177481,0.00079694,120]
[354820217,1740715849689,-500.0,0.00079694,120]
[354820218,1740715849702,-500.0,0.00079694,120]
[354820219,1740715849716,-500.0,0.00079694,120]
[354820220,1740715849726,-500.0,0.00079694,120]
[354820221,1740715849737,-500.0,0.00079694,120]
[354820222,1740715849748,-500.0,0.00079694,120]
[354820223,1740715849760,-504.63789493,0.00079694,120]
[354820224,1740715849772,-500.0,0.00079694,120]
[354820225,1740715849783,-500.0,0.00079694,120]
[354820226,1740715849794,-500.0,0.00079694,120]
[354820227,1740715849805,-500.0,0.00079694,120]
[354820228,1740715849816,-500.0,0.00079694,120]
[354820229,1740715849826,-500.0,0.00079694,120]
[354820230,1740715849837,-500.0,0.00079694,120]
[354820231,1740715849848,-500.0,0.00079694,120]
[354820232,1740715849859,-500.0,0.00079694,120]
[354820233,1740715849870,-500.0,0.00079694,30]
[354820234,1740715849881,-500.0,0.00079694,120]
[354820235,1740715849893,-500.0,0.00079694,120]
[354820236,1740715849903,-500.0,0.00079694,120]
[354820237,1740715849914,-500.0,0.00079694,120]
[354820238,1740715849925,-500.0,0.00079694,120]
[354820239,1740715849936,-500.0,0.00079694,120]
[354820240,1740715849947,-500.0,0.00079694,120]
[354820241,1740715849959,-500.0,0.00079694,120]
[354820242,1740715849970,-500.0,0.00079694,120]
[354820243,1740715849981,-314.73440912,0.0008,5]
[354820244,1740715849993,-1305.16,0.00082332,120]
[354820245,1740715850004,-500.0,0.00083726,120]
[354820246,1740715850015,-1305.16,0.00087812,120]
[354820247,1740715850027,-164.51,0.000879,60]
[354820248,1740715850037,-500.0,0.00088993,120]
[354820249,1740715850049,-160.0,0.00089407,2]
[354820250,1740715850060,-361.12,0.00089753,120]
[354820251,1740715850071,-3032.99999999,0.00092296,120]
[354820252,1740715850082,-1305.16,0.00093291,120]
[354820253,1740715850093,-757.22279207,0.00094317,120]
[354820254,1740715850104,-50008.6088,0.000944,120]
[354820255,1740715850116,-7983.64,0.000944,60]
[354820256,1740715850127,-301.53,0.000944,60]
[354820257,1740715850138,-154.97,0.000944,60]
[354820258,1740715850149,-7708.5616251,0.00095,120]
[354820259,1740715850161,-153.0,0.00097808,60]
[354820260,1740715850173,-308.096388,0.00097808,60]
[354820261,1740715850184,-557.7223166,0.00097808,60]
[354820262,1740715850195,-153.0,0.00097808,60]
[354820263,1740715850207,-153.0,0.00097808,60]
[354820264,1740715850218,-153.0,0.00097808,60]
[354820265,1740715850229,-153.0,0.00097808,60]
[354820266,1740715850243,-153.0,0.0009863,60]
[354820267,1740715850254,-153.0,0.0009863,60]
[354820268,1740715850265,-153.0,0.0009863,60]
[354820269,1740715850276,-153.0,0.0009863,60]
[354820270,1740715850288,-153.0,0.0009863,60]
[354820271,1740715850299,-153.0,0.0009863,60]
[354820272,1740715850311,-153.0,0.0009863,60]
[354820273,1740715850322,-153.0,0.0009863,60]
[354820274,1740715850333,-153.0,0.0009863,60]
[354820275,1740715850344,-153.0,0.0009863,60]
[354820276,1740715850355,-153.0,0.0009863,60]
[354820277,1740715850366,-153.0,0.0009863,60]
[354820278,1740715850377,-153.0,0.0009863,60]
[354820279,1740715850387,-153.0,0.0009863,60]
[354820280,1740715850396,-153.0,0.0009863,60]
[354820281,1740715850406,-153.0,0.0009863,60]
[354820282,1740715850416,-153.0,0.0009863,60]
[354820283,1740715850425,-153.0,0.0009863,60]
[354820284,1740715850435,-153.0,0.0009863,60]
[354820285,1740715850444,-153.0,0.0009863,60]
[354820286,1740715850453,-153.0,0.0009863,60]
[354820287,1740715850463,-153.0,0.0009863,60]
[354820288,1740715850473,-153.0,0.0009863,60]
[354820289,1740715850482,-153.0,0.0009863,60]
[354820290,1740715850491,-153.0,0.0009863,60]
[354820291,1740715850501,-156.2909987,0.0009863,60]
[354820292,1740715850510,-557.1188801,0.0009863,60]
[354820293,1740715850519,-355.4206398,0.0009863,60]
[354820294,1740715850528,-1305.16,0.00098771,120]
[354820295,1740715850537,-6307.71683697,0.000989,2]
[354820296,1740715850547,-162.11374149,0.00098999,120]
[354820297,1740715850556,-350.0,0.00099,120]
[354820298,1740715850565,-350.0,0.00099,120]
[354820299,1740715850574,-350.0,0.00099,120]
[354820300,1740715850583,-350.0,0.00099,120]
[354820301,1740715850592,-350.0,0.00099,120]
[354820302,1740715850602,-350.0,0.00099,120]
[354820303,1740715850611,-350.0,0.00099,120]
[354820304,1740715850620,-350.0,0.00099,120]
[354820305,1740715850830,-350.0,0.00099,120]
[354820306,1740715850843,-350.0,0.00099,120]
[354820307,1740715850853,-350.0,0.00099,120]
[354820308,1740715850862,-350.0,0.00099,120]
[354820309,1740715850873,-350.0,0.00099,120]
[354820310,1740715850882,-350.0,0.00099,120]
[354820311,1740715850891,-350.0,0.00099,120]
[354820312,1740715850901,-350.0,0.00099,120]
[354820313,1740715850910,-350.0,0.00099,120]
[354820314,1740715850919,-350.0,0.00099,120]
[354820315,1740715850928,-350.0,0.00099,120]
[354820316,1740715850937,-350.0,0.00099,120]
[354820317,1740715850946,-350.0,0.00099,120]
[354820318,1740715850958,-350.0,0.00099,120]
[354820319,1740715850968,-350.0,0.00099,120]
[354820320,1740715850977,-350.0,0.00099,120]
[354820321,1740715850986,-350.0,0.00099,120]
[354820322,1740715850995,-350.0,0.00099,120]
[354820323,1740715851004,-350.0,0.00099,120]
[354820324,1740715851012,-350.0,0.00099,120]
[354820325,1740715851021,-350.0,0.00099,120]
[354820326,1740715851030,-350.0,0.00099,120]
[354820327,1740715851039,-350.0,0.00099,120]
[354820328,1740715851047,-350.0,0.00099,120]
[354820329,1740715851056,-350.0,0.00099,120]
[354820330,1740715851065,-350.0,0.00099,120]
[354820331,1740715851075,-350.0,0.00099,120]
[354820332,1740715851084,-350.0,0.00099,120]
[354820333,1740715851093,-350.0,0.00099,120]
[354820334,1740715851102,-350.0,0.00099,120]
[354820335,1740715851111,-350.0,0.00099,120]
[354820336,1740715851121,-350.0,0.00099,120]
[354820337,1740715851130,-350.0,0.00099,120]
[354820338,1740715851139,-447.18107019,0.00099,120]
[354820339,1740715851148,-121728.08292923,0.00099,30]
[354820340,1740715851158,-16557.26631381,0.00099,30]
[354820341,1740715851166,-500.0,0.00099144,120]
[354820342,1740715851176,-180.0,0.001,120]
[354820343,1740715851187,-200.0,0.001,120]
[354820344,1740715851196,-1282.95,0.00104249,120]
[354820345,1740715851208,-500.0,0.00104249,120]
[354820346,1740715851217,-541.56,0.00104249,120]
[354820347,1740715851229,-500.0,0.00104249,120]
[354820348,1740715851239,-167.65498383,0.00104249,120]
[354820349,1740715851252,-962.02,0.00104249,120]
[354820350,1740715851261,-1354.13,0.00104249,120]
[354820351,1740715851271,-500.0,0.00104249,120]
[354820352,1740715851280,-500.0,0.00104249,120]
[354820353,1740715851289,-1082.83,0.00104249,120]
[354820354,1740715851299,-500.0,0.00104249,120]
[354820355,1740715851308,-500.0,0.00104249,120]
[354820356,1740715851317,-500.0,0.0010425,120]
[354820357,1740715851329,-500.0,0.0010425,120]
[354820358,1740715851338,-500.0,0.0010425,120]
[354820359,1740715851347,-500.0,0.0010425,120]
[354820360,1740715851357,-500.0,0.0010425,120]
[354820361,1740715851366,-682.69,0.0010425,120]
[354820362,1740715851376,-500.0,0.0010425,120]
[354820363,1740715851385,-532.58677432,0.0010425,120]
[354820364,1740715851395,-672.77,0.0010425,120]
[354820365,1740715851405,-500.0,0.0010425,120]
[354820366,1740715851414,-500.0,0.0010425,120]
[354820367,1740715851423,-500.0,0.0010425,120]
[354820368,1740715851433,-596.14,0.0010425,120]
[354820369,1740715851442,-500.0,0.0010425,120]
[354820370,1740715851451,-500.0,0.0010425,120]
[354820371,1740715851462,-500.0,0.0010425,120]
[354820372,1740715851471,-624.17,0.0010425,120]
[354820373,1740715851480,-500.0,0.0010425,120]
[354820374,1740715851490,-500.0,0.0010425,120]
[354820375,1740715851499,-500.0,0.0010425,120]
[354820376,1740715851508,-500.0,0.0010425,120]
[354820377,1740715851518,-500.0,0.0010425,120]
[354820378,1740715851527,-500.0,0.0010425,120]
[354820379,1740715851536,-500.0,0.0010425,120]
[354820380,1740715851545,-592.37,0.0010425,120]
[354820381,1740715851554,-500.0,0.0010425,120]
[354820382,1740715851564,-500.0,0.0010425,120]
[354820383,1740715851573,-500.0,0.0010425,120]
[354820384,1740715851582,-500.0,0.0010425,120]
[354820385,1740715851591,-500.0,0.0010425,120]
[354820386,1740715851601,-500.0,0.0010425,120]
[354820387,1740715851610,-500.0,0.0010425,120]
[354820388,1740715851621,-526.23,0.0010425,120]
[354820389,1740715851630,-729.78,0.0010425,120]
[354820390,1740715851640,-500.0,0.0010425,120]
[354820391,1740715851649,-500.0,0.0010425,120]
[354820392,1740715851659,-500.0,0.0010425,120]
[354820393,1740715851668,-500.0,0.0010425,120]
[354820394,1740715851677,-500.0,0.0010425,120]
[354820395,1740715851686,-500.0,0.0010425,120]
[354820396,1740715851695,-500.0,0.0010425,120]
[354820397,1740715851704,-500.0,0.0010425,120]
[354820398,1740715851715,-500.0,0.0010425,120]
[354820399,1740715851724,-500.0,0.0010425,120]
[354820400,1740715851733,-500.0,0.0010425,120]
[354820401,1740715851742,-500.0,0.0010425,120]
[354820402,1740715851751,-693.39,0.0010425,120]
[354820403,1740715851760,-500.0,0.0010425,120]
[354820404,1740715851769,-510.89830513,0.0010425,120]
[354820405,1740715851779,-518.67,0.0010425,120]
[354820406,1740715851788,-500.0,0.0010425,120]
[354820407,1740715851798,-500.0,0.0010425,120]
[354820408,1740715851808,-500.0,0.0010425,120]
[354820409,1740715851817,-528.97,0.0010425,120]
[354820410,1740715851827,-500.0,0.0010425,120]
[354820411,1740715851836,-3348.76,0.0010425,120]
[354820412,1740715851846,-500.0,0.0010425,120]
[354820413,1740715851856,-500.0,0.0010425,120]
[354820414,1740715851865,-500.0,0.0010425,120]
[354820415,1740715851874,-500.0,0.0010425,120]
[354820416,1740715851884,-500.0,0.0010425,120]
[354820417,1740715851893,-500.0,0.0010425,120]
[354820418,1740715851902,-500.0,0.0010425,120]
[354820419,1740715851912,-500.0,0.0010425,120]
[354820420,1740715851921,-500.0,0.0010425,120]
[354820421,1740715851931,-1331.92,0.0010425,120]
[354820422,1740715851940,-500.0,0.0010425,120]
[354820423,1740715851949,-578.35,0.0010425,120]
[354820424,1740715851960,-500.0,0.0010425,120]
[354820425,1740715851970,-500.0,0.0010425,120]
[354820426,1740715851979,-500.0,0.0010425,120]
[354820427,1740715851988,-5275.22,0.0010425,120]
[354820428,1740715851997,-500.0,0.0010425,120]
[354820429,1740715852007,-529.35,0.0010425,120]
[354820430,1740715852016,-500.0,0.0010425,120]
[354820431,1740715852025,-1305.16,0.0010425,120]
[354820432,1740715852034,-500.0,0.0010425,120]
[354820433,1740715852043,-500.0,0.0010425,120]
[354820434,1740715852052,-500.0,0.0010425,120]
[354820435,1740715852062,-666.05,0.0010425,120]
[354820436,1740715852071,-282.13273402,0.0010425,120]
[354820437,1740715852080,-500.0,0.0010425,120]
[354820438,1740715852090,-315.63484453,0.0010425,120]
[354820439,1740715852100,-1682.97,0.0010425,120]
[354820440,1740715852109,-500.0,0.0010425,120]
[354820441,1740715852119,-500.0,0.0010425,120]
[354820442,1740715852128,-799.8,0.0010425,120]
[354820443,1740715852137,-500.0,0.0010425,120]
[354820444,1740715852146,-2828.88,0.0010425,120]
[354820445,1740715852155,-500.0,0.0010425,30]
[354820446,1740715852164,-500.0,0.0010425,120]
[354820447,1740715852174,-500.0,0.0010425,120]
[354820448,1740715852184,-600.86,0.0010425,120]
[354820449,1740715852193,-510.73488405,0.0010425,120]
[354820450,1740715852202,-500.0,0.0010425,120]
[354820451,1740715852214,-500.0,0.0010425,120]
[354820452,1740715852223,-500.0,0.0010425,120]
[354820453,1740715852233,-3507.67,0.0010425,120]
[354820454,1740715852247,-500.0,0.0010425,120]
[354820455,1740715852256,-500.0,0.0010425,120]
[354820456,1740715852267,-500.0,0.0010425,120]
[354820457,1740715852276,-500.0,0.0010425,120]
[354820458,1740715852287,-2105.87,0.0010425,120]
[354820459,1740715852296,-500.0,0.0010425,120]
[354820460,1740715852307,-500.0,0.0010425,120]
[354820461,1740715852318,-500.0,0.0010425,120]
[354820462,1740715852328,-500.0,0.0010425,120]
[354820463,1740715852337,-500.0,0.0010425,120]
[354820464,1740715852346,-500.0,0.0010425,120]
[354820465,1740715852355,-500.0,0.0010425,120]
[354820466,1740715852364,-500.0,0.0010425,120]
[354820467,1740715852374,-2364.65,0.0010425,120]
[354820468,1740715852383,-7036.36,0.0010425,120]
[354820469,1740715852393,-500.0,0.0010425,120]
[354820470,1740715852402,-500.0,0.0010425,120]
[354820471,1740715852411,-500.0,0.0010425,120]
[354820472,1740715852420,-500.0,0.0010425,120]
[354820473,1740715852429,-780.49,0.0010425,120]
[354820474,1740715852438,-500.0,0.0010425,120]
[354820475,1740715852447,-516.79,0.0010425,120]
[354820476,1740715852457,-500.0,0.0010425,120]
[354820477,1740715852467,-500.0,0.0010425,120]
[354820478,1740715852477,-1811.74,0.0010425,120]
[354820479,1740715852486,-500.0,0.0010425,120]
[354820480,1740715852495,-51539.18,0.0010425,7]
[354820481,1740715852504,-500.0,0.0010425,120]
[354820482,1740715852514,-500.0,0.0010425,120]
[354820483,1740715852523,-500.0,0.0010425,120]
[354820484,1740715852532,-500.0,0.0010425,120]
[354820485,1740715852541,-500.0,0.0010425,120]
[354820486,1740715852551,-500.0,0.0010425,120]
[354820487,1740715852561,-500.0,0.0010425,120]
[354820488,1740715852570,-215.38620874,0.0010425,120]
[354820489,1740715852580,-500.0,0.0010425,120]
[354820490,1740715852590,-1251.38,0.0010425,120]
[354820491,1740715852601,-500.0,0.0010425,120]
[354820492,1740715852611,-1374.09,0.0010425,120]
[354820493,1740715852620,-500.0,0.0010425,120]
[354820494,1740715852630,-500.0,0.0010425,120]
[354820495,1740715852640,-500.0,0.0010425,120]
[354820496,1740715852650,-500.0,0.0010425,120]
[354820497,1740715852660,-2004.07,0.0010425,120]
[354820498,1740715852669,-500.0,0.0010425,120]
[354820499,1740715852678,-500.0,0.0010425,120]
[354820500,1740715852688,-500.0,0.0010425,120]
[354820501,1740715852697,-500.0,0.0010425,120]
[354820502,1740715852707,-500.0,0.0010425,120]
[354820503,1740715852717,-500.0,0.0010425,120]
[354820504,1740715852727,-930.77,0.0010425,120]
[354820505,1740715852736,-500.0,0.0010425,120]
[354820506,1740715852745,-500.0,0.0010425,120]
[354820507,1740715852756,-733.95,0.0010425,120]
[354820508,1740715852766,-500.0,0.0010425,120]
[354820509,1740715852775,-500.0,0.0010425,120]
[354820510,1740715852786,-500.0,0.0010425,120]
[354820511,1740715852795,-500.0,0.0010425,120]
[354820512,1740715852805,-500.0,0.0010425,120]
[354820513,1740715852815,-500.0,0.0010425,120]
[354820514,1740715852824,-500.0,0.0010425,120]
[354820515,1740715852834,-689.66,0.0010425,120]
[354820516,1740715852844,-615.96,0.0010425,120]
[354820517,1740715852855,-8336.4,0.0010425,7]
[354820518,1740715852864,-500.0,0.0010425,120]
[354820519,1740715852873,-500.0,0.0010425,120]
[354820520,1740715852882,-500.0,0.0010425,120]
[354820521,1740715852891,-296.17137374,0.0010435,120]
[354820522,1740715852901,-991.04,0.0010435,120]
[354820523,1740715852910,-792.45,0.0010435,120]
[354820524,1740715852919,-765.02,0.0010435,120]
[354820525,1740715852929,-500.0,0.0010435,120]
[354820526,1740715852938,-500.0,0.0010435,120]
[354820527,1740715852947,-500.0,0.0010435,120]
[354820528,1740715852958,-500.0,0.0010435,120]
[354820529,1740715852967,-500.0,0.0010435,120]
[354820530,1740715852976,-837.8,0.0010435,120]
[354820531,1740715852985,-500.0,0.0010435,120]
[354820532,1740715852997,-500.0,0.0010435,120]
[354820533,1740715853006,-500.0,0.0010435,2]
[354820534,1740715853024,-630.3,0.0010435,120]
[354820535,1740715853036,-643.78,0.0010435,120]
[354820536,1740715853047,-500.0,0.0010435,120]
[354820537,1740715853057,-500.0,0.0010435,120]
[354820538,1740715853066,-558.26,0.0010435,120]
[354820539,1740715853076,-1247.36,0.0010435,15]
[354820540,1740715853086,-500.0,0.0010435,120]
[354820541,1740715853096,-500.0,0.0010435,120]
[354820542,1740715853107,-500.0,0.0010435,120]
[354820543,1740715853117,-500.0,0.0010435,120]
[354820544,1740715853126,-500.0,0.0010435,120]
[354820545,1740715853136,-500.0,0.0010435,120]
[354820546,1740715853146,-764.34,0.0010435,120]
[354820547,1740715853156,-500.0,0.0010435,120]
[354820548,1740715853166,-500.0,0.0010435,120]
[354820549,1740715853176,-500.0,0.00104351,120]
[354820550,1740715853186,-500.0,0.00104351,120]
[354820551,1740715853196,-500.0,0.00104351,120]
[354820552,1740715853208,-500.0,0.00104351,120]
[354820553,1740715853218,-500.0,0.00104351,120]
[354820554,1740715853228,-500.0,0.00104351,120]
[354820555,1740715853238,-500.0,0.00104351,120]
[354820556,1740715853250,-289.13763349,0.00104351,120]
[354820557,1740715853259,-500.0,0.00104351,120]
[354820558,1740715853269,-500.0,0.00104351,120]
[354820559,1740715853279,-500.0,0.00104351,120]
[354820560,1740715853290,-500.0,0.00104351,120]
[354820561,1740715853299,-500.0,0.00104351,120]
[354820562,1740715853309,-500.0,0.00104351,120]
[354820563,1740715853320,-502.56258987,0.00104351,120]
[354820564,1740715853332,-500.0,0.00104351,120]
[354820565,1740715853343,-500.0,0.00104351,120]
[354820566,1740715853352,-576.98,0.00104351,120]
[354820567,1740715853362,-500.0,0.00104351,120]
[354820568,1740715853371,-500.0,0.00104351,120]
[354820569,1740715853381,-500.0,0.00104351,120]
[354820570,1740715853391,-500.0,0.00104351,120]
[354820571,1740715853400,-500.0,0.00104351,120]
[354820572,1740715853410,-500.0,0.00104351,120]
[354820573,1740715853420,-500.0,0.00104351,120]
[354820574,1740715853430,-500.0,0.00104351,120]
[354820575,1740715853440,-500.0,0.00104351,120]
[354820576,1740715853449,-500.0,0.00104351,120]
[354820577,1740715853461,-500.0,0.00104351,30]
[354820578,1740715853471,-500.0,0.00104351,120]
[354820579,1740715853480,-500.0,0.00104351,120]
[354820580,1740715853490,-500.0,0.00104351,120]
[354820581,1740715853500,-500.0,0.00104351,120]
[354820582,1740715853510,-500.0,0.00104351,120]
[354820583,1740715853520,-432.41,0.00106,60]
[354820584,1740715853529,-500.0,0.00106967,120]
[354820585,1740715853539,-500.0,0.00107168,120]
[354820586,1740715853549,-16557.26631381,0.00109,30]
[354820587,1740715853559,-467.901047,0.00109589,120]
[354820588,1740715853568,-1305.16,0.0010973,120]
[354820589,1740715853578,-467.901047,0.00111031,120]
[354820590,1740715853588,-5000.0,0.00112292,120]
[354820591,1740715853598,-467.901047,0.00112473,120]
[354820592,1740715853607,-467.901047,0.00113915,120]
[354820593,1740715853617,-1305.16,0.00115209,120]
[354820594,1740715853627,-467.901047,0.00115357,120]
[354820595,1740715853637,-2000.0,0.00115532,2]
[354820596,1740715853646,-467.901047,0.00116799,120]
[354820597,1740715853656,-467.901047,0.00118241,120]
[354820598,1740715853665,-467.901047,0.00119683,120]
[354820599,1740715853674,-1305.16,0.00120689,120]
[354820600,1740715853684,-467.901047,0.00121125,120]
[354820601,1740715853693,-467.901047,0.00122567,120]
[354820602,1740715853702,-467.901047,0.00124009,120]
[354820603,1740715853713,-467.901047,0.00125451,120]
[354820604,1740715853722,-1305.16,0.00126168,120]
[354820605,1740715853731,-467.901047,0.00126893,120]
[354820606,1740715853741,-467.901047,0.00128335,120]
[354820607,1740715853750,-1282.95,0.00128907,120]
[354820608,1740715853759,-500.0,0.00128907,120]
[354820609,1740715853769,-541.56,0.00128907,120]
[354820610,1740715853779,-500.0,0.00128907,120]
[354820611,1740715853790,-962.02,0.00128907,120]
[354820612,1740715853799,-1354.13,0.00128907,120]
[354820613,1740715853809,-500.0,0.00128907,120]
[354820614,1740715853818,-500.0,0.00128907,120]
[354820615,1740715853827,-1082.83,0.00128907,120]
[354820616,1740715853837,-442.57,0.00128907,120]
[354820617,1740715853846,-155.21,0.00128907,120]
[354820618,1740715853855,-500.0,0.00128908,120]
[354820619,1740715853864,-500.0,0.00128908,120]
[354820620,1740715853873,-500.0,0.00128908,120]
[354820621,1740715853883,-500.0,0.00128908,120]
[354820622,1740715853892,-500.0,0.00128908,120]
[354820623,1740715853901,-682.69,0.00128908,120]
[354820624,1740715853911,-500.0,0.00128908,120]
[354820625,1740715853922,-672.77,0.00128908,120]
[354820626,1740715853931,-500.0,0.00128908,120]
[354820627,1740715853942,-500.0,0.00128908,120]
[354820628,1740715853952,-500.0,0.00128908,120]
[354820629,1740715853967,-596.14,0.00128908,120]
[354820630,1740715853977,-500.0,0.00128908,120]
[354820631,1740715853987,-500.0,0.00128908,120]
[354820632,1740715853997,-500.0,0.00128908,120]
[354820633,1740715854006,-500.0,0.00128908,120]